[Event "Catalan Youth Championship 2024"]
[Site "Cambrils"]
[Date "2024.03.27"]
[Round "8.3"]
[White "Perez Monakhov, Andres"]
[Black "Guiu Ruiz, Lluc"]
[Result "1-0"]
[ECO "D31"]
[WhiteElo "1765"]
[BlackElo "1613"]
[Annotator "NA RC"]
[PlyCount "85"]
[EventDate "2024.03.13"]
[EventType "swiss"]
[EventCountry "ESP"]
[SourceTitle "playchess.com"]
[Source "ChessBase"]
[SourceQuality "1"]
[TimeControl "5400+30"]

1. d4 {[%emt 0:00:01]} d5 {[%emt 0:00:27]} 2. c4 {[%emt 0:00:06]} e6 {[%emt 0:01:39]} 3. Nc3 {[%emt 0:00:25]} a6 {[%emt 0:00:33]} 4. cxd5 {[%emt 0:00:27]} exd5 {[%emt 0:00:11]} 5. Bf4 {[%emt 0:00:09]} Nf6 {[%emt 0:00:38]} 6. e3 {[%emt 0:00:19]} Bd6 {[%emt 0:04:30]} 7. Bg5 {[%emt 0:02:50]} c6 {[%emt 0:03:03]} 8. Bd3 {[%emt 0:00:24]} Be6 {[%emt 0:05:32]} 9. Qc2 {[%emt 0:01:56]} h6 {[%emt 0:01:32]} 10. Bh4 {[%emt 0:00:13]} O-O {[%emt 0:01:06]} 11. Nge2 {[%emt 0:00:31]} Re8 {[%emt 0:02:50]} 12. f3 {[%emt 0:02:38]} Nbd7 {[%emt 0:02:27]} 13. e4 {[%emt 0:02:35]} dxe4 {[%emt 0:01:26]} 14. fxe4 {[%emt 0:00:19]} Be7 {[%emt 0:02:00]} 15. O-O-O {[%emt 0:03:06]} Qa5 {[%emt 0:02:47]} 16. Kb1 {[%emt 0:01:20]} Ng4 {[%emt 0:03:54]} 17. Bxe7 {[%emt 0:02:07]} Ne3 {[%emt 0:01:21]} 18. Qd2 {[%emt 0:02:33]} Nxd1 {[%emt 0:00:26]} 19. Rxd1 {[%emt 0:00:11]} Rxe7 {[%emt 0:00:23]} 20. Nd5 {[%emt 0:00:46]} Qxd2 {[%emt 0:02:09]} 21. Nxe7+ {[%emt 0:00:14]} Kf8 {[%emt 0:00:17]} 22. Ng6+ {[%emt 0:00:18]} fxg6 {[%emt 0:00:13]} 23. Rxd2 {[%emt 0:00:10]} Ke7 {[%emt 0:02:04]} 24. Nf4 {[%emt 0:00:42]} g5 {[%emt 0:02:22]} 25. Nxe6 {[%emt 0:00:21]} Kxe6 {[%emt 0:00:07]} 26. Bc4+ {[%emt 0:00:09]} Ke7 {[%emt 0:06:36]} 27. Kc2 {[%emt 0:00:47]} Nf6 {[%emt 0:02:11]} 28. h3 {[%emt 0:05:25]} Rd8 {[%emt 0:02:44]} 29. Kd3 {[%emt 0:06:59]} Nd7 {[%emt 0:10:26]} 30. Ke3 {[%emt 0:01:23]} Nb6 {[%emt 0:10:38]} 31. b3 {[%emt 0:01:49]} Nd7 {[%emt 0:03:36]} 32. e5 {[%emt 0:05:40]} c5 {[%emt 0:05:07]} 33. e6 {[%emt 0:07:40]} cxd4+ {[%emt 0:05:42]} 34. Rxd4 {[%emt 0:00:16]} Nb6 {[%emt 0:02:19]} 35. Rxd8 {[%emt 0:00:30]} Kxd8 {[%emt 0:00:08]} 36. Kd4 {[%emt 0:00:08]} Nxc4 {[%emt 0:01:20]} 37. Kxc4 {[%emt 0:00:21]} h5 {[%emt 0:07:43]} 38. g3 {[%emt 0:02:25]} Ke7 {[%emt 0:01:44]} 39. Kd5 {[%emt 0:00:58]} h4 {[%emt 0:00:50]} 40. g4 {[%emt 0:00:11]} g6 {[%emt 0:00:44]} 41. Ke5 {[%emt 0:00:16]} b5 {[%emt 0:00:32]} 42. b4 {[%emt 0:00:14]} Ke8 {[%emt 0:01:36]} 43. Kf6 {[%emt 0:00:33]} 1-0

[Event "Catalan Youth Championship 2024"]
[Site "Cambrils"]
[Date "2024.03.27"]
[Round "8.4"]
[White "Martin Montano, Laia"]
[Black "Garcia Huerta, Joaquin Marc"]
[Result "0-1"]
[ECO "D02"]
[WhiteElo "1646"]
[BlackElo "1617"]
[Annotator "NA RC"]
[PlyCount "110"]
[EventDate "2024.03.13"]
[EventType "swiss"]
[EventCountry "ESP"]
[SourceTitle "playchess.com"]
[Source "ChessBase"]
[SourceQuality "1"]
[TimeControl "5400+30"]

1. d4 {[%emt 0:00:05]} d5 {[%emt 0:00:14]} 2. Bf4 {[%emt 0:00:32]} Nf6 {[%emt 0:00:50]} 3. e3 {[%emt 0:01:07]} e6 {[%emt 0:02:31]} 4. Nf3 {[%emt 0:02:11]} Bd6 {[%emt 0:01:07]} 5. Bxd6 {[%emt 0:02:46]} cxd6 {[%emt 0:00:28]} 6. Bd3 {[%emt 0:01:55]} Nbd7 {[%emt 0:00:23]} 7. Nbd2 {[%emt 0:01:16]} e5 {[%emt 0:00:34]} 8. dxe5 {[%emt 0:01:16]} dxe5 {[%emt 0:00:13]} 9. e4 {[%emt 0:02:24]} dxe4 {[%emt 0:02:10]} 10. Nxe4 {[%emt 0:00:12]} O-O {[%emt 0:01:16]} 11. O-O {[%emt 0:00:34]} Nxe4 {[%emt 0:01:01]} 12. Bxe4 {[%emt 0:00:18]} Nf6 {[%emt 0:01:35]} 13. Qxd8 {[%emt 0:04:39]} Rxd8 {[%emt 0:00:16]} 14. Rfe1 {[%emt 0:00:51]} Nxe4 {[%emt 0:01:02]} 15. Rxe4 {[%emt 0:00:17]} f6 {[%emt 0:00:52]} 16. Rc4 {[%emt 0:06:54]} Bf5 {[%emt 0:01:54]} 17. Re1 {[%emt 0:05:15]} Rac8 {[%emt 0:00:45]} 18. Rxc8 {[%emt 0:03:26]} Rxc8 {[%emt 0:00:21]} 19. Re2 {[%emt 0:01:43]} Rxc2 {[%emt 0:00:22]} 20. Rxc2 {[%emt 0:00:08]} Bxc2 {[%emt 0:00:11]} 21. Kf1 {[%emt 0:01:21]} Kf7 {[%emt 0:01:15]} 22. Ke2 {[%emt 0:00:42]} Ke6 {[%emt 0:00:18]} 23. Kd2 {[%emt 0:02:27]} Bg6 {[%emt 0:04:31]} 24. Kc3 {[%emt 0:03:07]} Be4 {[%emt 0:02:46]} 25. Ne1 {[%emt 0:01:57]} h5 {[%emt 0:02:26]} 26. f3 {[%emt 0:00:42]} Bd5 {[%emt 0:04:14]} 27. a3 {[%emt 0:01:28]} g5 {[%emt 0:01:10]} 28. h3 {[%emt 0:01:54]} f5 {[%emt 0:00:23]} 29. Kd3 {[%emt 0:03:06]} b5 {[%emt 0:04:58]} 30. b4 {[%emt 0:01:42]} a6 {[%emt 0:00:26]} 31. Ke3 {[%emt 0:01:46]} g4 {[%emt 0:02:33]} 32. hxg4 {[%emt 0:00:54]} hxg4 {[%emt 0:00:15]} 33. g3 {[%emt 0:05:59]} gxf3 {[%emt 0:00:52]} 34. Nxf3 {[%emt 0:00:20]} Bxf3 {[%emt 0:00:10]} 35. Kxf3 {[%emt 0:00:04]} Kd5 {[%emt 0:00:06]} 36. Ke3 {[%emt 0:00:57]} Kc4 {[%emt 0:00:32]} 37. Kd2 {[%emt 0:00:22]} Kb3 {[%emt 0:00:05]} 38. Kc1 {[%emt 0:00:20]} f4 {[%emt 0:00:10]} 39. gxf4 {[%emt 0:00:22]} exf4 {[%emt 0:00:05]} 40. Kd2 {[%emt 0:00:17]} Kxa3 {[%emt 0:00:06]} 41. Kc2 {[%emt 0:00:35]} f3 {[%emt 0:00:05]} 42. Kd2 {[%emt 0:00:06]} Kxb4 {[%emt 0:00:05]} 43. Ke3 {[%emt 0:00:36]} Kc3 {[%emt 0:00:08]} 44. Kxf3 {[%emt 0:00:19]} b4 {[%emt 0:00:11]} 45. Ke4 {[%emt 0:00:22]} b3 {[%emt 0:00:05]} 46. Kf4 {[%emt 0:00:11]} b2 {[%emt 0:00:10]} 47. Ke4 {[%emt 0:00:40]} b1=Q+ {[%emt 0:00:07]} 48. Ke5 {[%emt 0:00:16]} a5 {[%emt 0:00:11]} 49. Ke6 {[%emt 0:00:15]} a4 {[%emt 0:00:02]} 50. Ke5 {[%emt 0:00:10]} a3 {[%emt 0:00:05]} 51. Ke6 {[%emt 0:00:04]} a2 {[%emt 0:00:03]} 52. Ke5 {[%emt 0:00:05]} a1=Q {[%emt 0:00:07]} 53. Kd6 {[%emt 0:00:13]} Qf5 {[%emt 0:00:19]} 54. Kc6 {[%emt 0:00:19]} Qa6+ {[%emt 0:00:07]} 55. Kc7 {[%emt 0:00:20]} Qfc8# {[%emt 0:00:06]} 0-1

[Event "Catalan Youth Championship 2024"]
[Site "Cambrils"]
[Date "2024.03.27"]
[Round "8.5"]
[White "Villa Peiro, Joan"]
[Black "Hijarrubia Alvarez-Cuevas, Gonzalo"]
[Result "0-1"]
[ECO "C00"]
[WhiteElo "1720"]
[BlackElo "1827"]
[Annotator "NA RC"]
[PlyCount "100"]
[EventDate "2024.03.13"]
[EventType "swiss"]
[EventCountry "ESP"]
[SourceTitle "playchess.com"]
[Source "ChessBase"]
[SourceQuality "1"]
[TimeControl "5400+30"]

1. e4 {[%emt 0:00:03]} c5 {[%emt 0:00:04]} 2. Nf3 {[%emt 0:00:04]} e6 {[%emt 0:00:06]} 3. b4 {[%emt 0:00:12]} cxb4 {[%emt 0:04:10]} 4. d4 {[%emt 0:00:05]} d5 {[%emt 0:10:19]} 5. e5 {[%emt 0:01:11]} Nc6 {[%emt 0:03:41]} 6. a3 {[%emt 0:00:07]} Bd7 {[%emt 0:07:12]} 7. axb4 $11 {[%emt 0:00:08]} Bxb4+ {[%emt 0:02:34]} 8. c3 {[%emt 0:00:11]} Be7 {[%emt 0:02:00]} 9. Bd3 {[%emt 0:00:06]} a6 {[%emt 0:05:35]} 10. Nbd2 {[%emt 0:02:01]} h5 {[%emt 0:59:49]} 11. h4 {[%emt 0:01:54]} Nh6 {[%emt 0:00:00]} 12. g3 {[%emt 0:02:24]} b5 {[%emt 0:00:00]} 13. Ng5 {[%emt 0:00:23]} Nf5 {[%emt 0:00:00]} 14. Qe2 {[%emt 0:05:36]} g6 {[%emt 0:00:00]} 15. Qf3 {[%emt 0:06:47]} b4 {[%emt 0:00:00]} 16. Bb2 {[%emt 0:01:57]} bxc3 {[%emt 0:00:00]} 17. Bxc3 {[%emt 0:00:10]} Bxg5 {[%emt 0:00:00]} 18. hxg5 {[%emt 0:00:44]} Qxg5 {[%emt 0:00:00]} 19. Rxa6 {[%emt 0:07:46]} Rxa6 {[%emt 0:00:00]} 20. Bxa6 {[%emt 0:00:09]} Nfxd4 {[%emt 0:00:00]} 21. Qd3 {[%emt 0:00:17]} Qf5 {[%emt 0:00:00]} 22. Qxf5 {[%emt 0:06:47]} Nxf5 {[%emt 0:00:00]} 23. g4 {[%emt 0:00:20]} Nfd4 {[%emt 0:00:00]} 24. Be2 {[%emt 0:04:33]} Nxe2 {[%emt 0:00:00]} 25. Kxe2 {[%emt 0:00:06]} d4 {[%emt 0:00:00]} 26. Bb2 {[%emt 0:00:41]} Nxe5 {[%emt 0:00:00]} 27. Bxd4 {[%emt 0:00:15]} Bb5+ {[%emt 0:00:00]} 28. Kd1 {[%emt 0:00:52]} Ba4+ {[%emt 0:00:00]} 29. Ke2 {[%emt 0:00:14]} Bb5+ {[%emt 0:00:00]} 30. Kd1 {[%emt 0:00:07]} Nd3 {[%emt 0:00:00]} 31. Ne4 {[%emt 0:01:28]} e5 {[%emt 0:10:30]} 32. Be3 {[%emt 0:00:29]} Bc6 {[%emt 0:00:00]} 33. f3 {[%emt 0:00:07]} Bxe4 {[%emt 0:00:00]} 34. fxe4 {[%emt 0:00:13]} Nf4 {[%emt 0:00:00]} 35. Bxf4 {[%emt 0:00:33]} exf4 {[%emt 0:00:00]} 36. gxh5 {[%emt 0:00:14]} Rxh5 {[%emt 0:00:00]} 37. Rxh5 {[%emt 0:00:51]} gxh5 {[%emt 0:00:00]} 38. Ke2 {[%emt 0:00:07]} Ke7 {[%emt 0:00:00]} 39. Kf3 {[%emt 0:00:05]} Ke6 {[%emt 0:00:00]} 40. Kxf4 {[%emt 0:00:08]} Kf6 {[%emt 0:00:00]} 41. Kf3 {[%emt 0:00:12]} Ke5 {[%emt 0:05:00]} 42. Ke3 {[%emt 0:00:33]} f6 {[%emt 0:00:00]} 43. Kf3 {[%emt 0:00:12]} h4 {[%emt 0:00:00]} 44. Ke3 {[%emt 0:01:15]} h3 {[%emt 0:00:00]} 45. Kf3 {[%emt 0:00:06]} h2 {[%emt 0:00:00]} 46. Kg2 {[%emt 0:00:03]} Kxe4 {[%emt 0:00:00]} 47. Kxh2 {[%emt 0:00:06]} Kf3 {[%emt 0:00:00]} 48. Kh3 {[%emt 0:01:33]} f5 {[%emt 0:00:00]} 49. Kh2 {[%emt 0:00:07]} f4 {[%emt 0:00:00]} 50. Kh1 {[%emt 0:00:10]} Ke2 {[%emt 0:00:00]} 0-1

[Event "Catalan Youth Championship 2024"]
[Site "Cambrils"]
[Date "2024.03.27"]
[Round "8.6"]
[White "Berrozpe Gonzalez, Marc"]
[Black "Tallada Serret, Gerard"]
[Result "0-1"]
[ECO "B31"]
[WhiteElo "1743"]
[BlackElo "2085"]
[Annotator "NA RC"]
[PlyCount "66"]
[EventDate "2024.03.13"]
[EventType "swiss"]
[EventCountry "ESP"]
[SourceTitle "playchess.com"]
[Source "ChessBase"]
[SourceQuality "1"]
[TimeControl "5400+30"]

1. e4 {[%emt 1:31:00]} c5 {[%emt 1:31:00]} 2. Nf3 {[%emt 0:00:30]} Nc6 {[%emt 0:00:30]} 3. Bb5 {[%emt 0:00:30]} g6 {[%emt 0:00:30]} 4. Bxc6 {[%emt 0:00:30]} dxc6 {[%emt 0:00:30]} 5. d3 {[%emt 0:00:30]} Bg7 {[%emt 0:00:30]} 6. h3 {[%emt 0:00:30]} Nf6 {[%emt 0:00:30]} 7. Nc3 {[%emt 0:00:30]} Nd7 {[%emt 0:00:30]} 8. Be3 {[%emt 0:00:30]} e5 {[%emt 0:00:30]} 9. Qd2 {[%emt 0:00:30]} h6 {[%emt 0:00:30]} 10. O-O $11 {[%emt 0:00:30]} b6 {[%emt 0:00:30]} 11. Nh2 {[%emt 0:00:30]} g5 {[%emt 0:00:30]} 12. Ne2 {[%emt 0:00:30]} Nf8 {[%emt 0:00:30]} 13. Ng3 {[%emt 0:00:30]} Ng6 {[%emt 0:00:30]} 14. c3 {[%emt 0:00:30]} O-O {[%emt 0:00:30]} 15. Rad1 {[%emt 0:00:30]} Be6 {[%emt 0:00:30]} 16. Ra1 {[%emt 0:00:30]} Qe7 {[%emt 0:00:30]} 17. Rfd1 {[%emt 0:00:30]} Rfd8 {[%emt 0:00:30]} 18. Qc2 {[%emt 0:00:30]} Rd6 {[%emt 0:00:30]} 19. Nf5 {[%emt 0:00:30]} Bxf5 {[%emt 0:00:30]} 20. exf5 {[%emt 0:00:30]} Nh4 {[%emt 0:00:30]} 21. g4 {[%emt 0:00:30]} Rad8 {[%emt 0:00:30]} 22. Rd2 {[%emt 0:00:30]} Qd7 {[%emt 0:00:30]} 23. Rad1 {[%emt 0:00:30]} Rf6 {[%emt 0:00:30]} 24. c4 {[%emt 0:00:30]} Rd6 {[%emt 0:00:30]} 25. f3 {[%emt 0:00:30]} Qc7 {[%emt 0:00:30]} 26. a3 {[%emt 0:00:30]} R6d7 {[%emt 0:00:30]} 27. Rf2 {[%emt 0:00:30]} e4 {[%emt 0:00:30]} 28. fxe4 {[%emt 0:00:30]} Qg3+ {[%emt 0:00:30]} 29. Kf1 {[%emt 0:00:30]} Qxe3 {[%emt 0:00:30]} 30. Qa4 {[%emt 0:00:30]} Rxd3 {[%emt 0:00:30]} 31. Re1 {[%emt 0:00:30]} Qxh3+ {[%emt 0:00:30]} 32. Kg1 {[%emt 0:00:30]} Bd4 {[%emt 0:00:30]} 33. Qc2 {[%emt 0:00:30]} Qg2# {[%emt 0:00:30]} 0-1

[Event "Catalan Youth Championship 2024"]
[Site "Cambrils"]
[Date "2024.03.27"]
[Round "8.7"]
[White "Bru Montoya, Pau"]
[Black "Monclus Janssens, Jack"]
[Result "1-0"]
[ECO "B13"]
[WhiteElo "1850"]
[BlackElo "1707"]
[Annotator "NA RC"]
[PlyCount "69"]
[EventDate "2024.03.13"]
[EventType "swiss"]
[EventCountry "ESP"]
[SourceTitle "playchess.com"]
[Source "ChessBase"]
[SourceQuality "1"]
[TimeControl "5400+30"]

1. e4 {[%emt 0:00:02]} c6 {[%emt 0:00:17]} 2. d4 {[%emt 0:00:19]} d5 {[%emt 0:00:12]} 3. exd5 {[%emt 0:00:10]} cxd5 {[%emt 0:00:12]} 4. Bd3 {[%emt 0:00:11]} Nc6 {[%emt 0:00:14]} 5. c3 {[%emt 0:00:17]} Qc7 {[%emt 0:00:08]} 6. Ne2 {[%emt 0:03:19]} Bg4 {[%emt 0:00:35]} 7. f3 {[%emt 0:06:35]} Bd7 {[%emt 0:01:02]} 8. Qb3 {[%emt 0:04:48]} Nf6 {[%emt 0:02:51]} 9. Bf4 {[%emt 0:00:36]} Qc8 {[%emt 0:03:40]} (9... e5 $15 10. Bg5 Be7) 10. Na3 {[%emt 0:03:52]} a6 $11 {[%emt 0:03:20]} 11. Qd1 {[%emt 0:03:38]} Bf5 {[%emt 0:04:32]} 12. O-O {[%emt 0:02:08]} Bxd3 {[%emt 0:03:32]} 13. Qxd3 {[%emt 0:00:13]} e6 {[%emt 0:00:46]} 14. Nc2 {[%emt 0:01:26]} Be7 {[%emt 0:01:49]} 15. Ne3 {[%emt 0:04:03]} Qd7 {[%emt 0:05:34]} 16. Be5 {[%emt 0:05:02]} O-O {[%emt 0:13:44]} 17. Ng3 {[%emt 0:04:33]} Ne8 {[%emt 0:04:34]} 18. Ng4 {[%emt 0:05:58]} f6 {[%emt 0:05:27]} 19. Bf4 {[%emt 0:00:06]} Nd6 {[%emt 0:02:29]} 20. Rfe1 {[%emt 0:06:35]} Rfe8 {[%emt 0:03:07]} 21. Qe2 {[%emt 0:03:25]} Bf8 {[%emt 0:06:01]} 22. Nh5 {[%emt 0:00:50]} Kf7 {[%emt 0:00:56]} 23. Qd3 {[%emt 0:02:59]} f5 {[%emt 0:02:51]} 24. Ne5+ {[%emt 0:00:54]} Nxe5 {[%emt 0:00:12]} 25. Bxe5 {[%emt 0:00:13]} Qe7 {[%emt 0:07:51]} 26. Nf4 {[%emt 0:11:35]} Nc4 {[%emt 0:04:03]} 27. b3 {[%emt 0:02:29]} Nxe5 {[%emt 0:01:48]} 28. Rxe5 {[%emt 0:00:21]} Qg5 {[%emt 0:01:56]} 29. Nxe6 {[%emt 0:02:18]} Qh6 {[%emt 0:06:50]} 30. Qxf5+ {[%emt 0:01:57]} Kg8 {[%emt 0:02:46]} 31. Nxf8 {[%emt 0:01:29]} Rxe5 {[%emt 0:00:25]} 32. Qxe5 {[%emt 0:00:17]} Rxf8 {[%emt 0:00:27]} 33. Re1 {[%emt 0:00:20]} Qd2 {[%emt 0:00:52]} 34. Qxd5+ {[%emt 0:00:31]} Kh8 {[%emt 0:00:06]} 35. Qe4 {[%emt 0:01:07]} 1-0

[Event "Catalan Youth Championship 2024"]
[Site "Cambrils"]
[Date "2024.03.27"]
[Round "8.8"]
[White "Faixedas Climent, Pol"]
[Black "Torres Herrera, Guillem"]
[Result "1/2-1/2"]
[ECO "C01"]
[WhiteElo "1703"]
[BlackElo "1780"]
[Annotator "NA RC"]
[PlyCount "39"]
[EventDate "2024.03.13"]
[EventType "swiss"]
[EventCountry "ESP"]
[SourceTitle "playchess.com"]
[Source "ChessBase"]
[SourceQuality "1"]
[TimeControl "5400+30"]

1. e4 {[%emt 0:00:04]} e6 {[%emt 0:03:13]} 2. d4 {[%emt 0:00:09]} d5 {[%emt 0:00:13]} 3. exd5 {[%emt 0:00:13]} exd5 {[%emt 0:00:08]} 4. Bd3 {[%emt 0:00:13]} Bd6 {[%emt 0:00:43]} 5. Nf3 {[%emt 0:00:56]} Nf6 {[%emt 0:00:42]} 6. h3 {[%emt 0:02:37]} h6 {[%emt 0:01:01]} 7. O-O {[%emt 0:02:29]} O-O {[%emt 0:01:58]} 8. Re1 {[%emt 0:01:09]} c5 {[%emt 0:02:37]} 9. c3 {[%emt 0:10:48]} Nc6 {[%emt 0:01:52]} 10. Nbd2 {[%emt 0:14:00]} Qc7 {[%emt 0:05:52]} 11. dxc5 {[%emt 0:05:59]} Bxc5 {[%emt 0:00:06]} 12. Nb3 {[%emt 0:01:38]} Bd6 {[%emt 0:01:31]} 13. Nbd4 {[%emt 0:05:40]} a6 {[%emt 0:06:03]} 14. Qc2 {[%emt 0:11:16]} Nxd4 15. Nxd4 Be5 {[%emt 0:10:17]} 16. Nf3 {[%emt 0:08:18]} Bd6 {[%emt 0:03:56]} 17. Be3 {[%emt 0:04:40]} Bd7 {[%emt 0:09:50]} 18. Bd4 {[%emt 0:05:12]} Qd8 {[%emt 0:03:45]} 19. Rad1 {[%emt 0:06:53]} Be6 {[%emt 0:07:01]} 20. a3 {[%emt 0:01:26]} 1/2-1/2

[Event "Catalan Youth Championship 2024"]
[Site "Cambrils"]
[Date "2024.03.27"]
[Round "8.9"]
[White "Prada Villagrasa, Pau Manel"]
[Black "Herman Gamazo, Isaac"]
[Result "1-0"]
[ECO "B28"]
[WhiteElo "2103"]
[BlackElo "2096"]
[Annotator "NA RC"]
[PlyCount "67"]
[EventDate "2024.03.13"]
[EventType "swiss"]
[EventCountry "ESP"]
[SourceTitle "playchess.com"]
[Source "ChessBase"]
[SourceQuality "1"]
[TimeControl "5400+30"]

1. e4 {[%emt 1:31:00]} c5 {[%emt 1:31:00]} 2. Nf3 {[%emt 0:00:30]} a6 {[%emt 0:00:30]} 3. d4 {[%emt 0:00:30]} cxd4 {[%emt 0:00:30]} 4. Nxd4 {[%emt 0:00:30]} Nf6 {[%emt 0:00:30]} 5. Nc3 {[%emt 0:00:30]} e5 {[%emt 0:00:30]} 6. Nb3 {[%emt 0:00:30]} Bb4 {[%emt 0:00:30]} 7. Bg5 {[%emt 0:00:30]} d6 {[%emt 0:00:30]} 8. Qd3 {[%emt 0:00:30]} Qe7 {[%emt 0:00:30]} 9. O-O-O {[%emt 0:00:30]} Bxc3 {[%emt 0:00:30]} 10. Qxc3 {[%emt 0:00:30]} O-O {[%emt 0:00:30]} 11. f3 {[%emt 0:00:30]} Be6 {[%emt 0:00:30]} (11... Nc6 $14) 12. Qb4 {[%emt 0:00:30]} Rd8 $1 {[%emt 0:00:30]} 13. Na5 {[%emt 0:00:30]} Nc6 $2 {[%emt 0:00:30]} (13... b5 $14) 14. Qxb7 {[%emt 0:00:30]} Qxb7 {[%emt 0:00:30]} 15. Nxb7 {[%emt 0:00:30]} Rdb8 $18 {[%emt 0:00:30]} 16. Rxd6 {[%emt 0:00:30]} Nb4 {[%emt 0:00:30]} 17. Nc5 {[%emt 0:00:30]} Ne8 {[%emt 0:00:30]} 18. Rxe6 {[%emt 0:00:30]} fxe6 {[%emt 0:00:30]} 19. Bc4 {[%emt 0:00:30]} h6 {[%emt 0:00:30]} 20. Bxe6+ {[%emt 0:00:30]} Kh8 {[%emt 0:00:30]} 21. Bd2 {[%emt 0:00:30]} Nc7 22. Bc4 Nc6 23. Bc3 {[%emt 0:01:00]} Rd8 {[%emt 0:01:30]} 24. Nd3 {[%emt 0:00:30]} Re8 {[%emt 0:00:30]} 25. Bf7 {[%emt 0:00:30]} Re7 {[%emt 0:00:30]} 26. Bd5 {[%emt 0:00:30]} Nxd5 {[%emt 0:00:30]} 27. exd5 {[%emt 0:00:30]} Nd4 {[%emt 0:00:30]} 28. Re1 {[%emt 0:00:30]} Rd7 {[%emt 0:00:30]} 29. Rxe5 {[%emt 0:00:30]} Nb5 {[%emt 0:00:30]} 30. Nc5 {[%emt 0:00:30]} Rd6 {[%emt 0:00:30]} 31. Ne4 {[%emt 0:00:30]} Rd7 {[%emt 0:00:30]} 32. Ba5 {[%emt 0:00:30]} Rc8 {[%emt 0:00:30]} 33. Kd2 {[%emt 0:00:30]} Nd4 {[%emt 0:00:30]} 34. Bc3 {[%emt 0:00:30]} 1-0

[Event "Catalan Youth Championship 2024"]
[Site "Cambrils"]
[Date "2024.03.27"]
[Round "8.10"]
[White "Villa Tornero, Alex"]
[Black "Escoriza Pons, Xavier"]
[Result "1-0"]
[ECO "A06"]
[WhiteElo "2329"]
[BlackElo "1941"]
[Annotator "RC"]
[PlyCount "83"]
[EventDate "2024.03.13"]
[EventType "swiss"]
[EventCountry "ESP"]
[SourceTitle "playchess.com"]
[Source "ChessBase"]
[SourceQuality "1"]
[TimeControl "5400+30"]

1. Nf3 {[%emt 0:00:26]} d5 {[%emt 0:00:41]} 2. e3 {[%emt 0:00:08]} Nf6 {[%emt 0:00:38]} 3. b3 {[%emt 0:00:10]} e6 {[%emt 0:01:12]} 4. Bb2 {[%emt 0:00:14]} Be7 {[%emt 0:01:23]} 5. Be2 {[%emt 0:00:14]} O-O {[%emt 0:00:55]} 6. O-O {[%emt 0:00:19]} c5 {[%emt 0:01:09]} 7. d4 {[%emt 0:01:42]} Nc6 {[%emt 0:01:32]} 8. a3 {[%emt 0:02:11]} b6 {[%emt 0:02:22]} 9. dxc5 {[%emt 0:00:49]} bxc5 {[%emt 0:01:53]} 10. c4 {[%emt 0:00:25]} Bb7 {[%emt 0:10:12]} 11. cxd5 {[%emt 0:01:54]} exd5 {[%emt 0:01:02]} 12. Nc3 {[%emt 0:00:14]} Qd7 {[%emt 0:08:23]} 13. Rc1 {[%emt 1:28:14]} Rfd8 {[%emt 1:05:38]} 14. Na4 {[%emt 0:00:00]} d4 {[%emt 0:00:30]} 15. Qd3 {[%emt 0:00:00]} Qd5 {[%emt 0:00:00]} 16. Qb5 {[%emt 0:00:00]} Ne5 {[%emt 0:00:00]} 17. exd4 {[%emt 0:00:00]} Bc6 {[%emt 0:00:00]} 18. Qa5 {[%emt 0:00:00]} cxd4 {[%emt 0:00:00]} 19. Qxd5 {[%emt 0:00:00]} Rxd5 {[%emt 0:00:00]} 20. Nxd4 {[%emt 0:00:00]} Bxa4 {[%emt 0:00:00]} 21. bxa4 {[%emt 0:00:00]} Bxa3 {[%emt 0:00:00]} 22. Bxa3 {[%emt 0:00:00]} Rxd4 {[%emt 0:00:00]} 23. Bb5 {[%emt 0:00:00]} h6 {[%emt 0:00:00]} 24. Bb2 {[%emt 0:00:00]} Rd5 {[%emt 0:00:00]} 25. Rfd1 {[%emt 0:00:00]} Rxd1+ {[%emt 0:00:00]} 26. Rxd1 {[%emt 0:00:00]} Ng6 {[%emt 0:00:00]} 27. g3 {[%emt 0:00:00]} Rb8 {[%emt 0:00:31]} 28. Bxf6 {[%emt 0:00:00]} gxf6 {[%emt 0:00:02]} 29. Rd7 {[%emt 0:00:00]} Ra8 {[%emt 0:00:55]} 30. f4 {[%emt 0:00:00]} Nf8 {[%emt 0:01:52]} 31. Rb7 {[%emt 0:00:00]} Ne6 {[%emt 0:00:42]} 32. a5 {[%emt 0:09:30]} Kg7 {[%emt 0:02:05]} 33. a6 {[%emt 0:00:00]} Kg6 {[%emt 0:00:54]} 34. Bc4 {[%emt 0:00:00]} Nd8 {[%emt 0:00:46]} 35. Rd7 {[%emt 0:00:00]} Rc8 {[%emt 0:01:05]} 36. Bd3+ {[%emt 0:00:00]} Kg7 {[%emt 0:00:21]} 37. Rxa7 {[%emt 0:00:00]} Rc1+ {[%emt 0:00:27]} 38. Kg2 {[%emt 0:00:00]} Ra1 {[%emt 0:00:32]} 39. Rd7 {[%emt 0:00:00]} Ne6 {[%emt 0:00:37]} 40. Bc4 {[%emt 0:00:00]} Kf8 {[%emt 0:00:37]} 41. a7 {[%emt 0:00:00]} Nc5 {[%emt 0:00:53]} 42. Rd8+ {[%emt 0:00:00]} 1-0

[Event "Catalan Youth Championship 2024"]
[Site "Cambrils"]
[Date "2024.03.27"]
[Round "8.11"]
[White "Dea Ruiz, Jofre"]
[Black "Marin Ripoll, Marti"]
[Result "1/2-1/2"]
[ECO "E90"]
[WhiteElo "1836"]
[BlackElo "1884"]
[Annotator "NA RC"]
[PlyCount "61"]
[EventDate "2024.03.13"]
[EventType "swiss"]
[EventCountry "ESP"]
[SourceTitle "playchess.com"]
[Source "ChessBase"]
[SourceQuality "1"]
[TimeControl "5400+30"]

1. d4 {[%emt 0:00:04]} Nf6 {[%emt 0:00:19]} 2. c4 {[%emt 0:00:20]} g6 {[%emt 0:00:11]} 3. Nc3 {[%emt 0:00:26]} Bg7 {[%emt 0:00:21]} 4. e4 {[%emt 0:00:18]} d6 {[%emt 0:00:12]} 5. h3 {[%emt 0:00:20]} O-O {[%emt 0:00:10]} 6. Be3 {[%emt 0:00:13]} c5 {[%emt 0:00:48]} 7. d5 {[%emt 0:00:23]} e6 {[%emt 0:00:33]} 8. Nf3 {[%emt 0:00:50]} exd5 {[%emt 0:01:00]} 9. exd5 {[%emt 0:00:24]} Re8 {[%emt 0:00:44]} 10. Bd3 {[%emt 0:00:27]} Rxe3+ {[%emt 0:03:10]} 11. fxe3 {[%emt 0:00:48]} Qe7 {[%emt 0:00:12]} 12. Qe2 $16 {[%emt 0:19:04]} Nh5 {[%emt 0:17:17]} 13. Rg1 {[%emt 0:01:13]} Nd7 {[%emt 0:07:00]} 14. g4 {[%emt 0:01:40]} Nhf6 {[%emt 0:00:15]} 15. O-O-O {[%emt 0:01:50]} Ne5 {[%emt 0:03:00]} 16. Nxe5 {[%emt 0:01:13]} Qxe5 {[%emt 0:00:01]} 17. e4 {[%emt 0:03:58]} Bd7 {[%emt 0:08:12]} 18. Rdf1 {[%emt 0:08:36]} a6 {[%emt 0:00:39]} 19. Qf2 {[%emt 0:06:10]} Be8 {[%emt 0:00:48]} 20. Qg3 {[%emt 0:14:29]} Nd7 {[%emt 0:00:54]} 21. Qxe5 {[%emt 0:00:28]} Nxe5 {[%emt 0:00:01]} 22. Kc2 {[%emt 0:02:24]} Kf8 {[%emt 0:01:27]} 23. a3 {[%emt 0:03:32]} a5 {[%emt 0:03:10]} 24. Be2 {[%emt 0:02:58]} Ra6 {[%emt 0:05:08]} 25. h4 {[%emt 0:02:34]} h6 {[%emt 0:03:14]} 26. g5 {[%emt 0:04:55]} h5 {[%emt 0:00:23]} 27. Nb5 {[%emt 0:01:19]} Bxb5 {[%emt 0:07:31]} 28. cxb5 {[%emt 0:00:03]} Ra8 {[%emt 0:00:20]} 29. a4 {[%emt 0:01:20]} b6 {[%emt 0:01:44]} 30. Rf4 {[%emt 0:04:19]} Ke7 {[%emt 0:01:30]} 31. Rgf1 {[%emt 0:01:58]} 1/2-1/2